[Event "*** Titled Tuesday Blitz"]
[Site "Chess.com"]
[Date "2021.04.06"]
[Round "3"]
[White "Ranindu2003"]
[Black "anpospan"]
[Result "1-0"]
[WhiteElo "2593"]
[BlackElo "2401"]
[TimeControl "180+1"]
[EndTime "10:29:02 PDT"]
[Termination "Ranindu2003 won by checkmate"]

1. e4 {[%clk 0:03:00.9]} 1... Nc6 {[%clk 0:02:58.3]} 2. Nc3 {[%clk 0:02:59.5]}
2... g6 {[%clk 0:02:57.1]} 3. d4 {[%clk 0:02:57.7]} 3... d6 {[%clk 0:02:51.9]}
4. f4 {[%clk 0:02:56.9]} 4... Bg7 {[%clk 0:02:51]} 5. Nf3 {[%clk 0:02:57.4]}
5... Bg4 {[%clk 0:02:49.8]} 6. d5 {[%clk 0:02:50.2]} 6... Nd4 {[%clk 0:02:43.6]}
7. Be3 {[%clk 0:02:48.7]} 7... Bxf3 {[%clk 0:02:29.6]} 8. gxf3 {[%clk
0:02:49.6]} 8... c5 {[%clk 0:02:29.3]} 9. dxc6 {[%clk 0:02:34.9]} 9... Nxc6
{[%clk 0:02:27.7]} 10. Bb5 {[%clk 0:02:30.4]} 10... Qa5 {[%clk 0:02:25.5]} 11.
Qd3 {[%clk 0:02:28]} 11... Bxc3+ {[%clk 0:02:16.8]} 12. bxc3 {[%clk 0:02:28.9]}
12... a6 {[%clk 0:02:12.1]} 13. Bc4 {[%clk 0:02:21.5]} 13... Nf6 {[%clk
0:02:08.9]} 14. O-O {[%clk 0:02:16.7]} 14... Qh5 {[%clk 0:01:59.7]} 15. Rab1
{[%clk 0:02:04.1]} 15... b5 {[%clk 0:01:57.3]} 16. Bd5 {[%clk 0:01:43.2]} 16...
Nxd5 {[%clk 0:01:50.8]} 17. exd5 {[%clk 0:01:44.1]} 17... Na5 {[%clk 0:01:44.5]}
18. a4 {[%clk 0:01:41.7]} 18... Nc4 {[%clk 0:01:34.3]} 19. axb5 {[%clk
0:01:19.2]} 19... axb5 {[%clk 0:01:34.4]} 20. Rxb5 {[%clk 0:01:15.2]} 20... Nxe3
{[%clk 0:01:33.7]} 21. Qxe3 {[%clk 0:01:16.1]} 21... O-O {[%clk 0:01:33.5]} 22.
Qxe7 {[%clk 0:01:08.4]} 22... Rfe8 {[%clk 0:01:11.6]} 23. Qg5 {[%clk 0:01:06.1]}
23... Qh3 {[%clk 0:01:08.9]} 24. Qg4 {[%clk 0:01:01.1]} 24... Qh6 {[%clk
0:01:02.4]} 25. Rfb1 {[%clk 0:00:42.6]} 25... Re2 {[%clk 0:00:42.2]} 26. Rb8+
{[%clk 0:00:36]} 26... Kg7 {[%clk 0:00:35]} 27. h3 {[%clk 0:00:27.2]} 27... Rxb8
{[%clk 0:00:17.8]} 28. Rxb8 {[%clk 0:00:28.1]} 28... Rxc2 {[%clk 0:00:14.1]} 29.
Rc8 {[%clk 0:00:02.2]} 29... Rd2 {[%clk 0:00:11.2]} 30. Rc7 {[%clk 0:00:01.9]}
30... Rxd5 {[%clk 0:00:07]} 31. c4 {[%clk 0:00:02]} 31... Rd1+ {[%clk
0:00:06.6]} 32. Kg2 {[%clk 0:00:02.4]} 32... Rd2+ {[%clk 0:00:06.8]} 33. Kg3
{[%clk 0:00:02.6]} 33... Rd1 {[%clk 0:00:06.5]} 34. Kf2 {[%clk 0:00:03.2]} 34...
Rd2+ {[%clk 0:00:05.8]} 35. Ke3 {[%clk 0:00:03.7]} 35... Rh2 {[%clk 0:00:04.1]}
36. Qd7 {[%clk 0:00:04.2]} 36... Qxh3 {[%clk 0:00:02.8]} 37. Qxf7+ {[%clk
0:00:04.2]} 37... Kh6 {[%clk 0:00:03]} 38. Qf8+ {[%clk 0:00:05]} 38... Kh5
{[%clk 0:00:01.8]} 39. Rxh7# {[%clk 0:00:05.9]} 1-0

[Event "*** Titled Tuesday Blitz"]
[Site "Chess.com"]
[Date "2021.04.06"]
[Round "3"]
[White "kamilianin235"]
[Black "Cptn2"]
[Result "0-1"]
[WhiteElo "2247"]
[BlackElo "2519"]
[TimeControl "180+1"]
[EndTime "10:29:04 PDT"]
[Termination "Cptn2 won by resignation"]

1. e4 {[%clk 0:03:00.9]} 1... c5 {[%clk 0:03:00]} 2. Nf3 {[%clk 0:03:01.1]} 2...
g6 {[%clk 0:02:59.2]} 3. d4 {[%clk 0:03:00.9]} 3... cxd4 {[%clk 0:02:59.5]} 4.
Qxd4 {[%clk 0:03:01.8]} 4... Nf6 {[%clk 0:02:58.6]} 5. Nc3 {[%clk 0:03:02.2]}
5... Nc6 {[%clk 0:02:59]} 6. Qa4 {[%clk 0:03:01.8]} 6... d6 {[%clk 0:02:57.7]}
7. e5 {[%clk 0:03:01.6]} 7... dxe5 {[%clk 0:02:56]} 8. Nxe5 {[%clk 0:03:02.5]}
8... Bd7 {[%clk 0:02:56.6]} 9. Nxd7 {[%clk 0:03:01.3]} 9... Nxd7 {[%clk
0:02:57.5]} 10. Bb5 {[%clk 0:02:59]} 10... Bg7 {[%clk 0:02:55]} 11. O-O {[%clk
0:02:57.4]} 11... O-O {[%clk 0:02:53.6]} 12. Rd1 {[%clk 0:02:55.6]} 12... Qc8
{[%clk 0:02:53.9]} 13. Nd5 {[%clk 0:02:48]} 13... Re8 {[%clk 0:02:52.6]} 14. Bf4
{[%clk 0:02:43.9]} 14... e5 {[%clk 0:02:48.3]} 15. Bg5 {[%clk 0:02:37.4]} 15...
Nb6 {[%clk 0:02:29.9]} 16. Qb3 {[%clk 0:02:23]} 16... Nxd5 {[%clk 0:02:18.8]}
17. Qxd5 {[%clk 0:02:21.2]} 17... Nd4 {[%clk 0:02:15.4]} 18. Bxe8 {[%clk
0:02:17.7]} 18... Qxe8 {[%clk 0:02:11.9]} 19. c3 {[%clk 0:02:13.5]} 19... Ne6
{[%clk 0:02:09.8]} 20. Be3 {[%clk 0:02:09.5]} 20... b6 {[%clk 0:02:10]} 21. Qd7
{[%clk 0:02:07.2]} 21... Qf8 {[%clk 0:02:08.3]} 22. Qb7 {[%clk 0:02:01.4]} 22...
f5 {[%clk 0:01:52.8]} 23. Qd7 {[%clk 0:01:51.9]} 23... Qf6 {[%clk 0:01:44.4]}
24. f3 {[%clk 0:01:42.2]} 24... h5 {[%clk 0:01:38.1]} 25. Rd6 {[%clk 0:01:36.9]}
25... Nf8 {[%clk 0:01:37]} 26. Qc6 {[%clk 0:01:17.8]} 26... Qe7 {[%clk
0:01:34.8]} 27. Rad1 {[%clk 0:01:17.5]} 27... Re8 {[%clk 0:01:31]} 28. Qc4+
{[%clk 0:01:10.2]} 28... Kh7 {[%clk 0:01:29.9]} 29. h4 {[%clk 0:01:09.2]} 29...
f4 {[%clk 0:01:27.1]} 30. Bf2 {[%clk 0:01:08.5]} 30... g5 {[%clk 0:01:25.8]} 31.
Qe4+ {[%clk 0:01:06.7]} 31... Kh8 {[%clk 0:01:24.9]} 32. hxg5 {[%clk 0:01:05.2]}
32... Qxg5 {[%clk 0:01:25.7]} 33. R6d5 {[%clk 0:00:52.4]} 33... h4 {[%clk
0:01:24.7]} 34. Kf1 {[%clk 0:00:50.9]} 34... Ne6 {[%clk 0:01:05.9]} 35. Ke2
{[%clk 0:00:46.5]} 35... Bf6 {[%clk 0:00:56.9]} 36. Rd7 {[%clk 0:00:39.2]} 36...
Ng7 {[%clk 0:00:56.5]} 37. Rh1 {[%clk 0:00:33.9]} 37... Qxg2 {[%clk 0:00:52.3]}
38. Rg1 {[%clk 0:00:32.6]} 38... Qh3 {[%clk 0:00:53]} 39. Rb7 {[%clk 0:00:18.3]}
39... Qf5 {[%clk 0:00:51]} 40. Qc6 {[%clk 0:00:13.2]} 40... e4 {[%clk
0:00:42.2]} 41. Rgxg7 {[%clk 0:00:10.9]} 41... exf3+ {[%clk 0:00:36.4]} 42. Kxf3
{[%clk 0:00:10.8]} 42... Qh3+ {[%clk 0:00:31.3]} 43. Rg3 {[%clk 0:00:08.9]}
43... Qh1+ {[%clk 0:00:28.6]} 44. Kg4 {[%clk 0:00:06.3]} 44... Qxc6 {[%clk
0:00:27.4]} 0-1

[Event "*** Titled Tuesday Blitz"]
[Site "Chess.com"]
[Date "2021.04.06"]
[Round "3"]
[White "Grandmaster1369"]
[Black "DonBroca"]
[Result "1-0"]
[WhiteElo "2438"]
[BlackElo "2212"]
[TimeControl "180+1"]
[EndTime "10:29:04 PDT"]
[Termination "Grandmaster1369 won on time"]

1. e4 {[%clk 0:03:00.9]} 1... c5 {[%clk 0:02:58.4]} 2. Nf3 {[%clk 0:03:00.7]}
2... d6 {[%clk 0:02:58.9]} 3. Bb5+ {[%clk 0:02:59.9]} 3... Nd7 {[%clk
0:02:57.8]} 4. d4 {[%clk 0:02:59.7]} 4... cxd4 {[%clk 0:02:58.7]} 5. Qxd4 {[%clk
0:03:00.3]} 5... Nf6 {[%clk 0:02:57.8]} 6. c4 {[%clk 0:02:59.4]} 6... g6 {[%clk
0:02:54.3]} 7. Nc3 {[%clk 0:02:38.7]} 7... Bg7 {[%clk 0:02:54.5]} 8. Qd3 {[%clk
0:02:38.9]} 8... O-O {[%clk 0:02:53.8]} 9. Bxd7 {[%clk 0:02:39.5]} 9... Bxd7
{[%clk 0:02:53.6]} 10. O-O {[%clk 0:02:40.2]} 10... Bc6 {[%clk 0:02:53.9]} 11.
Re1 {[%clk 0:02:38.9]} 11... Rc8 {[%clk 0:02:47.7]} 12. Nd4 {[%clk 0:02:39]}
12... Qb6 {[%clk 0:02:26.1]} 13. Nb3 {[%clk 0:02:23.3]} 13... Ng4 {[%clk
0:02:18.8]} 14. Qe2 {[%clk 0:02:05.5]} 14... Ne5 {[%clk 0:01:33]} 15. Be3 {[%clk
0:02:03.9]} 15... Qb4 {[%clk 0:01:32.1]} 16. c5 {[%clk 0:01:48.3]} 16... Nc4
{[%clk 0:01:24.7]} 17. cxd6 {[%clk 0:01:34.8]} 17... Nxd6 {[%clk 0:01:24.3]} 18.
Bc5 {[%clk 0:01:30.7]} 18... Qc4 {[%clk 0:00:59]} 19. Bxd6 {[%clk 0:01:18.6]}
19... Qxe2 {[%clk 0:00:57.4]} 20. Nxe2 {[%clk 0:01:06.8]} 20... exd6 {[%clk
0:00:57.2]} 21. Ned4 {[%clk 0:01:07.2]} 21... Rfe8 {[%clk 0:00:55.6]} 22. f3
{[%clk 0:01:03.2]} 22... d5 {[%clk 0:00:51.2]} 23. Nxc6 {[%clk 0:00:56.7]} 23...
bxc6 {[%clk 0:00:47.4]} 24. Re2 {[%clk 0:00:32]} 24... dxe4 {[%clk 0:00:46.8]}
25. fxe4 {[%clk 0:00:32.9]} 25... c5 {[%clk 0:00:46.9]} 26. Rc1 {[%clk
0:00:27.3]} 26... c4 {[%clk 0:00:45.1]} 27. Nd2 {[%clk 0:00:22.5]} 27... Bxb2
{[%clk 0:00:25.8]} 28. Rxc4 {[%clk 0:00:21.4]} 28... Red8 {[%clk 0:00:20.3]} 29.
Rxc8 {[%clk 0:00:18.5]} 29... Rxc8 {[%clk 0:00:20.4]} 30. Nb3 {[%clk 0:00:19.4]}
30... Be5 {[%clk 0:00:18.8]} 31. g3 {[%clk 0:00:17.7]} 31... Rc3 {[%clk
0:00:14.7]} 32. Kf2 {[%clk 0:00:15.4]} 32... Kg7 {[%clk 0:00:13.9]} 33. Re3
{[%clk 0:00:08.2]} 33... Rc2+ {[%clk 0:00:12.2]} 34. Re2 {[%clk 0:00:08.6]}
34... Rc3 {[%clk 0:00:12.4]} 35. Rd2 {[%clk 0:00:06]} 35... h5 {[%clk
0:00:11.2]} 36. Rd5 {[%clk 0:00:05.9]} 36... Rc2+ {[%clk 0:00:08.7]} 37. Rd2
{[%clk 0:00:06.1]} 37... Rc4 {[%clk 0:00:07.4]} 38. Ke3 {[%clk 0:00:05.3]} 38...
Rc3+ {[%clk 0:00:05.4]} 39. Rd3 {[%clk 0:00:06]} 39... Rc4 {[%clk 0:00:04.7]}
40. Rd5 {[%clk 0:00:05.5]} 40... Kf6 {[%clk 0:00:03.3]} 41. Nc5 {[%clk 0:00:04]}
1-0

[Event "*** Titled Tuesday Blitz"]
[Site "Chess.com"]
[Date "2021.04.06"]
[Round "3"]
[White "anon102030"]
[Black "sewin16"]
[Result "1-0"]
[WhiteElo "2719"]
[BlackElo "2488"]
[TimeControl "180+1"]
[EndTime "10:29:05 PDT"]
[Termination "anon102030 won by resignation"]

1. e4 {[%clk 0:03:00.9]} 1... e5 {[%clk 0:02:59.5]} 2. Nf3 {[%clk 0:02:59.2]}
2... Nc6 {[%clk 0:02:59.8]} 3. Bc4 {[%clk 0:02:58.9]} 3... Bc5 {[%clk
0:02:58.1]} 4. c3 {[%clk 0:02:58.7]} 4... Nf6 {[%clk 0:02:57.8]} 5. d4 {[%clk
0:02:58.5]} 5... exd4 {[%clk 0:02:58.1]} 6. cxd4 {[%clk 0:02:59.1]} 6... Bb4+
{[%clk 0:02:58]} 7. Bd2 {[%clk 0:02:58]} 7... Nxe4 {[%clk 0:02:56.9]} 8. Bxb4
{[%clk 0:02:56.1]} 8... Nxb4 {[%clk 0:02:54.8]} 9. Bxf7+ {[%clk 0:02:55.4]} 9...
Kxf7 {[%clk 0:02:54.5]} 10. Qb3+ {[%clk 0:02:56]} 10... Kf8 {[%clk 0:02:54.5]}
11. Qxb4+ {[%clk 0:02:55.1]} 11... Qe7 {[%clk 0:02:55.1]} 12. Qxe7+ {[%clk
0:02:52.5]} 12... Kxe7 {[%clk 0:02:55.5]} 13. O-O {[%clk 0:02:52]} 13... Kf7
{[%clk 0:02:40.7]} 14. Ne5+ {[%clk 0:02:42.1]} 14... Kf6 {[%clk 0:02:28.4]} 15.
f3 {[%clk 0:02:35.6]} 15... Ng5 {[%clk 0:02:21.3]} 16. Nc3 {[%clk 0:02:30.8]}
16... d6 {[%clk 0:02:19.6]} 17. Nd5+ {[%clk 0:02:22.3]} 17... Ke6 {[%clk
0:02:02.1]} 18. Nxc7+ {[%clk 0:02:21.8]} 18... Kf6 {[%clk 0:02:00.7]} 19. Ng4+
{[%clk 0:02:13.9]} 19... Bxg4 {[%clk 0:01:59.3]} 20. fxg4+ {[%clk 0:02:14.8]}
20... Kg6 {[%clk 0:01:57.5]} 21. Nxa8 {[%clk 0:02:13.9]} 21... Rxa8 {[%clk
0:01:57.6]} 22. Rac1 {[%clk 0:02:13.4]} 22... Re8 {[%clk 0:01:55.4]} 23. h4
{[%clk 0:02:09]} 23... Ne4 {[%clk 0:01:53.3]} 24. Rc7 {[%clk 0:02:03.9]} 24...
Ng3 {[%clk 0:01:47.3]} 25. Rff7 {[%clk 0:01:58.4]} 25... Re1+ {[%clk 0:01:43.6]}
26. Kh2 {[%clk 0:01:34]} 26... Nf1+ {[%clk 0:01:43]} 27. Rxf1 {[%clk 0:01:33.8]}
27... Rxf1 {[%clk 0:01:43.9]} 28. Rxb7 {[%clk 0:01:33.3]} 28... Rf4 {[%clk
0:01:41.8]} 29. Kg3 {[%clk 0:01:26.1]} 29... Rxd4 {[%clk 0:01:40.7]} 30. Rxa7
{[%clk 0:01:26.6]} 30... Rd2 {[%clk 0:01:40.5]} 31. b4 {[%clk 0:01:24.6]} 31...
Rb2 {[%clk 0:01:40.1]} 32. a3 {[%clk 0:01:09.6]} 32... Kf6 {[%clk 0:01:35.3]}
33. Ra5 {[%clk 0:00:46.7]} 33... Ke6 {[%clk 0:01:33.6]} 34. Kf3 {[%clk
0:00:46.4]} 34... d5 {[%clk 0:01:32.7]} 35. g3 {[%clk 0:00:45.1]} 35... Ke5
{[%clk 0:01:32.3]} 36. Ra7 {[%clk 0:00:40.1]} 36... Rb3+ {[%clk 0:01:32.8]} 37.
Kf2 {[%clk 0:00:32.9]} 37... d4 {[%clk 0:01:30.2]} 38. Rxg7 {[%clk 0:00:26.9]}
38... Rb2+ {[%clk 0:01:29.6]} 39. Kf3 {[%clk 0:00:24.8]} 39... Rb3+ {[%clk
0:01:29.4]} 40. Ke2 {[%clk 0:00:25.1]} 40... Rb2+ {[%clk 0:01:29.6]} 41. Kd3
{[%clk 0:00:24.5]} 41... Rb3+ {[%clk 0:01:29.5]} 42. Kc2 {[%clk 0:00:23.7]}
42... Rxa3 {[%clk 0:01:28.9]} 43. Rxh7 {[%clk 0:00:20.4]} 43... Rxg3 {[%clk
0:01:29.4]} 44. g5 {[%clk 0:00:21]} 44... Rg2+ {[%clk 0:01:26.3]} 45. Kd3 {[%clk
0:00:18.7]} 45... Rg3+ {[%clk 0:01:26]} 46. Kc4 {[%clk 0:00:11.6]} 46... Rc3+
{[%clk 0:01:24.5]} 47. Kb5 {[%clk 0:00:11.5]} 47... Rg3 {[%clk 0:01:23.4]} 48.
Ka4 {[%clk 0:00:05.5]} 48... Kd5 {[%clk 0:01:16.7]} 49. Rd7+ {[%clk 0:00:05.2]}
49... Kc4 {[%clk 0:01:15.7]} 50. Rd8 {[%clk 0:00:06.1]} 50... Rg4 {[%clk
0:01:13.1]} 51. Rc8+ {[%clk 0:00:04.2]} 51... Kd5 {[%clk 0:01:11.7]} 52. Rh8
{[%clk 0:00:03.4]} 52... d3 {[%clk 0:01:10.8]} 53. Kb3 {[%clk 0:00:03.8]} 53...
Kd4 {[%clk 0:01:08.5]} 54. Rd8+ {[%clk 0:00:02.8]} 54... Ke3 {[%clk 0:01:08.3]}
55. b5 {[%clk 0:00:03.7]} 55... Rxh4 {[%clk 0:01:07.9]} 56. b6 {[%clk
0:00:04.1]} 56... Rh7 {[%clk 0:01:08.5]} 57. Kc4 {[%clk 0:00:03.9]} 57... Rh4+
{[%clk 0:01:06.3]} 58. Kc3 {[%clk 0:00:04.2]} 58... Rh7 {[%clk 0:01:00.2]} 59.
Rxd3+ {[%clk 0:00:04.2]} 59... Kf4 {[%clk 0:01:00.7]} 60. Rd5 {[%clk 0:00:04.2]}
60... Ke4 {[%clk 0:01:00.1]} 61. Rb5 {[%clk 0:00:04.7]} 61... Rb7 {[%clk
0:00:57.9]} 62. g6 {[%clk 0:00:04.8]} 1-0

[Event "*** Titled Tuesday Blitz"]
[Site "Chess.com"]
[Date "2021.04.06"]
[Round "3"]
[White "jd001"]
[Black "dpopadic"]
[Result "1-0"]
[WhiteElo "2171"]
[BlackElo "2336"]
[TimeControl "180+1"]
[EndTime "10:29:07 PDT"]
[Termination "jd001 won on time"]

1. d4 {[%clk 0:02:25.9]} 1... Nf6 {[%clk 0:02:58.2]} 2. c4 {[%clk 0:02:25.9]}
2... g6 {[%clk 0:02:58]} 3. Nc3 {[%clk 0:02:25.8]} 3... Bg7 {[%clk 0:02:58.2]}
4. e4 {[%clk 0:02:26.1]} 4... d6 {[%clk 0:02:58.9]} 5. Nf3 {[%clk 0:02:26.5]}
5... O-O {[%clk 0:02:59]} 6. Be2 {[%clk 0:02:27.1]} 6... e5 {[%clk 0:02:59]} 7.
O-O {[%clk 0:02:27.6]} 7... Na6 {[%clk 0:02:58.8]} 8. d5 {[%clk 0:02:27]} 8...
Nc5 {[%clk 0:02:57.4]} 9. Qc2 {[%clk 0:02:26.8]} 9... a5 {[%clk 0:02:57]} 10.
Ne1 {[%clk 0:02:26.7]} 10... Ne8 {[%clk 0:02:43.3]} 11. Nd3 {[%clk 0:02:26.4]}
11... Nxd3 {[%clk 0:02:38.6]} 12. Bxd3 {[%clk 0:02:26]} 12... f5 {[%clk
0:02:38]} 13. Bd2 {[%clk 0:02:24.8]} 13... f4 {[%clk 0:02:37.6]} 14. Rac1 {[%clk
0:02:23.2]} 14... f3 {[%clk 0:02:34.9]} 15. g3 {[%clk 0:02:22.5]} 15... b6
{[%clk 0:02:34.8]} 16. a3 {[%clk 0:02:21]} 16... Qd7 {[%clk 0:02:29.2]} 17. Rfe1
{[%clk 0:02:16]} 17... Qh3 {[%clk 0:02:29]} 18. Bf1 {[%clk 0:02:15.4]} 18... Qh5
{[%clk 0:02:29.5]} 19. b4 {[%clk 0:01:56.5]} 19... Bh3 {[%clk 0:02:28.8]} 20.
Bd3 {[%clk 0:01:51.6]} 20... Nf6 {[%clk 0:02:26]} 21. Nd1 {[%clk 0:01:33.2]}
21... Ng4 {[%clk 0:02:23.2]} 22. Ne3 {[%clk 0:01:32]} 22... Nxh2 {[%clk
0:02:22]} 23. c5 {[%clk 0:01:19.7]} 23... bxc5 {[%clk 0:02:14.1]} 24. bxc5
{[%clk 0:01:18.8]} 24... Bh6 {[%clk 0:01:58.5]} 25. cxd6 {[%clk 0:01:13.5]}
25... cxd6 {[%clk 0:01:57.2]} 26. Qc7 {[%clk 0:01:06.6]} 26... Bxe3 {[%clk
0:01:44.3]} 27. Bxe3 {[%clk 0:01:04.4]} 27... Bg2 {[%clk 0:01:39]} 28. Qe7
{[%clk 0:00:40.9]} 28... Ng4 {[%clk 0:01:00.8]} 29. Qh4 {[%clk 0:00:39.5]} 29...
Qxh4 {[%clk 0:00:52.4]} 30. gxh4 {[%clk 0:00:39.4]} 30... Nxe3 {[%clk
0:00:51.6]} 31. Rxe3 {[%clk 0:00:39]} 31... Rf4 {[%clk 0:00:51.5]} 32. Bf1
{[%clk 0:00:31.7]} 32... Bxf1 {[%clk 0:00:30.8]} 33. Kxf1 {[%clk 0:00:31.2]}
33... Rxh4 {[%clk 0:00:31.7]} 34. Ke1 {[%clk 0:00:28.3]} 34... Rb8 {[%clk
0:00:24.1]} 35. Kd2 {[%clk 0:00:24.7]} 35... Rf8 {[%clk 0:00:03.6]} 36. Rcc3
{[%clk 0:00:23]} 36... Rhf4 {[%clk 0:00:02]} 37. Kc2 {[%clk 0:00:22.5]} 37... h5
{[%clk 0:00:02.5]} 38. Kb3 {[%clk 0:00:22.3]} 38... h4 {[%clk 0:00:02.7]} 39.
Ka4 {[%clk 0:00:21.7]} 39... h3 {[%clk 0:00:02.9]} 40. Re1 {[%clk 0:00:21.7]}
40... h2 {[%clk 0:00:02.5]} 41. Rh1 {[%clk 0:00:21.1]} 41... Rh4 {[%clk
0:00:03.1]} 42. Kxa5 {[%clk 0:00:20.4]} 42... Rff4 {[%clk 0:00:03.1]} 43. Re3
{[%clk 0:00:19.7]} 43... Rfg4 {[%clk 0:00:03.5]} 44. Kb6 {[%clk 0:00:18.6]}
44... Rg1 {[%clk 0:00:03.5]} 45. Rxh2 {[%clk 0:00:19.1]} 45... Rxh2 {[%clk
0:00:02.8]} 46. Rxf3 {[%clk 0:00:19.7]} 46... Rb1+ {[%clk 0:00:01.4]} 47. Kc6
{[%clk 0:00:20.1]} 47... Ra1 {[%clk 0:00:02.2]} 48. Kxd6 {[%clk 0:00:20.3]}
48... Rhh1 {[%clk 0:00:02.6]} 49. Kxe5 {[%clk 0:00:20.9]} 49... Rhd1 {[%clk
0:00:03]} 50. Kf6 {[%clk 0:00:21.4]} 50... Rd2 {[%clk 0:00:01.4]} 51. Rg3 {[%clk
0:00:21.7]} 1-0

[Event "*** Titled Tuesday Blitz"]
[Site "Chess.com"]
[Date "2021.04.06"]
[Round "3"]
[White "IljaJoke"]
[Black "szabadaba"]
[Result "1/2-1/2"]
[WhiteElo "2489"]
[BlackElo "2667"]
[TimeControl "180+1"]
[EndTime "10:29:09 PDT"]
[Termination "Game drawn by repetition"]

1. e4 {[%clk 0:03:00.9]} 1... c6 {[%clk 0:02:59]} 2. d4 {[%clk 0:03:00.5]} 2...
d5 {[%clk 0:02:59.5]} 3. exd5 {[%clk 0:03:01]} 3... cxd5 {[%clk 0:02:59.5]} 4.
c4 {[%clk 0:03:01.9]} 4... Nf6 {[%clk 0:02:59.7]} 5. Nc3 {[%clk 0:03:02.2]} 5...
Nc6 {[%clk 0:03:00]} 6. Nf3 {[%clk 0:03:02.7]} 6... e6 {[%clk 0:03:00]} 7. cxd5
{[%clk 0:03:02.4]} 7... Nxd5 {[%clk 0:02:59.7]} 8. Bc4 {[%clk 0:02:59.6]} 8...
Nb6 {[%clk 0:02:58.8]} 9. Bd3 {[%clk 0:02:50.1]} 9... Be7 {[%clk 0:02:58.1]} 10.
O-O {[%clk 0:02:50.3]} 10... O-O {[%clk 0:02:58]} 11. a3 {[%clk 0:02:43]} 11...
Bf6 {[%clk 0:02:56.3]} 12. Bc2 {[%clk 0:02:43.3]} 12... Nxd4 {[%clk 0:02:45.2]}
13. Nxd4 {[%clk 0:02:37.7]} 13... Qxd4 {[%clk 0:02:42.3]} 14. Be3 {[%clk
0:02:23.4]} 14... Qxd1 {[%clk 0:02:39.3]} 15. Raxd1 {[%clk 0:02:24.3]} 15... Nc4
{[%clk 0:02:22.7]} 16. Bc1 {[%clk 0:02:23.8]} 16... a6 {[%clk 0:01:34.6]} 17.
Be4 {[%clk 0:02:16.7]} 17... Nxa3 {[%clk 0:01:24.2]} 18. bxa3 {[%clk 0:02:10.1]}
18... Bxc3 {[%clk 0:01:23]} 19. Be3 {[%clk 0:02:10.4]} 19... f5 {[%clk
0:01:14.2]} 20. Bf3 {[%clk 0:02:07.7]} 20... Bf6 {[%clk 0:01:11]} 21. Rb1 {[%clk
0:02:04.1]} 21... Rf7 {[%clk 0:01:01.4]} 22. Rfc1 {[%clk 0:02:03]} 22... h6
{[%clk 0:01:01.2]} 23. a4 {[%clk 0:01:32.6]} 23... a5 {[%clk 0:00:56.6]} 24. Bb6
{[%clk 0:01:26.6]} 24... g5 {[%clk 0:00:47.8]} 25. g3 {[%clk 0:01:23.8]} 25...
g4 {[%clk 0:00:46.7]} 26. Bg2 {[%clk 0:01:24.1]} 26... Bd7 {[%clk 0:00:38.7]}
27. Bxb7 {[%clk 0:01:23.4]} 27... Rb8 {[%clk 0:00:37.6]} 28. Bc7 {[%clk
0:01:22.9]} 28... Re8 {[%clk 0:00:34.3]} 29. Bxa5 {[%clk 0:01:03.3]} 29... Bxa4
{[%clk 0:00:33.1]} 30. Bc6 {[%clk 0:01:02.8]} 30... Bxc6 {[%clk 0:00:32.6]} 31.
Rxc6 {[%clk 0:01:03.7]} 31... Bd4 {[%clk 0:00:28.5]} 32. Re1 {[%clk 0:00:58.8]}
32... Rf6 {[%clk 0:00:23.2]} 33. Bd2 {[%clk 0:00:53.1]} 33... Kg7 {[%clk
0:00:21.1]} 34. Bf4 {[%clk 0:00:51.2]} 34... e5 {[%clk 0:00:20.2]} 35. Rxf6
{[%clk 0:00:43.2]} 35... Kxf6 {[%clk 0:00:20.1]} 36. Bxh6 {[%clk 0:00:43.6]}
36... Rc8 {[%clk 0:00:19.7]} 37. Be3 {[%clk 0:00:42.5]} 37... Rc2 {[%clk
0:00:16.1]} 38. Kg2 {[%clk 0:00:39.4]} 38... Rc3 {[%clk 0:00:14.4]} 39. h4
{[%clk 0:00:27.2]} 39... gxh3+ {[%clk 0:00:14]} 40. Kxh3 {[%clk 0:00:27.2]}
40... Rc2 {[%clk 0:00:11.6]} 41. Bxd4 {[%clk 0:00:19.7]} 41... exd4 {[%clk
0:00:11.4]} 42. f4 {[%clk 0:00:19.8]} 42... d3 {[%clk 0:00:09.9]} 43. Re5 {[%clk
0:00:19.5]} 43... Re2 {[%clk 0:00:05.3]} 44. Rd5 {[%clk 0:00:19]} 44... d2
{[%clk 0:00:05.7]} 45. Rd6+ {[%clk 0:00:18.4]} 45... Ke7 {[%clk 0:00:05.6]} 46.
Rd5 {[%clk 0:00:18.8]} 46... Ke6 {[%clk 0:00:06]} 47. Rd4 {[%clk 0:00:18.3]}
47... Rf2 {[%clk 0:00:04.1]} 48. Rd3 {[%clk 0:00:17.7]} 48... Re2 {[%clk
0:00:03.3]} 49. Rd4 {[%clk 0:00:17.9]} 49... Kf6 {[%clk 0:00:03.7]} 50. Rd6+
{[%clk 0:00:17.7]} 50... Ke7 {[%clk 0:00:04.2]} 51. Rd5 {[%clk 0:00:17.9]} 51...
Ke6 {[%clk 0:00:04.7]} 52. Rd4 {[%clk 0:00:18.4]} 1/2-1/2